[Event "2nd Cambridge Open 2024"]
[Site "Cambridge"]
[Date "2024.02.21"]
[Round "4.11"]
[White "Roberson, Peter T"]
[Black "Martyn, Rafe"]
[Result "0-1"]
[ECO "B23"]
[WhiteElo "2424"]
[BlackElo "2206"]
[Annotator "TA"]
[PlyCount "118"]
[EventDate "2024.02.18"]
[EventType "swiss"]
[EventCountry "ENG"]
[SourceTitle "playchess.com"]
[Source "ChessBase"]
[SourceQuality "1"]
[TimeControl "5400+30"]

{[%evp 23,117,-10,-1,-22,-4,-51,-46,-58,-43,-63,-61,-56,-31,-94,-62,-109,-122,-108,-97,-107,-97,-101,-108,-145,-64,-179,-181,-186,-152,-233,-235,-235,-197,-383,-385,-396,-373,-388,-379,-426,-437,-413,-397,-433,-397,-339,-239,-566,-534,-612,-613,-672,-668,-646,-627,-5297,-743,-29977,-29978,-29978,-29977,-29977,-29976,-29975,-29976,-29977,-29978,-29974,-6107,-2419,-1916,-29979,-29980,-29983,-29984,-29985,-29986,-29986,-29987,-29987,-29988,-29988,-29989,-29989,-29990,-29991,-29989,-29989,0,-29991,-29990,-29997,-29998,-29998,-29999,-29999]} 1. Nc3 {[%emt 0:01:21]} c5 {[%emt 0:02:16]} 2. e4 {[%emt 0:00:24]} Nc6 {[%emt 0:00:33]} 3. Bb5 {[%emt 0:01:05]} Nd4 {[%emt 0:00:05]} 4. Nf3 {[%emt 0:00:04]} a6 {[%emt 0:00:03]} 5. Bd3 {[%emt 0:00:45]} Nc6 {[%emt 0:00:12]} 6. O-O {[%emt 0:03:02]} d6 {[%emt 0:01:13]} 7. a3 {[%emt 0:04:38]} g6 {[%emt 0:01:04]} 8. Rb1 {[%emt 0:03:13]} Bg7 {[%emt 0:08:55]} 9. b4 {[%emt 0:00:24]} Nf6 {[%emt 0:03:13]} 10. bxc5 {[%emt 0:10:21]} dxc5 {[%emt 0:00:05]} 11. a4 {[%emt 0:01:18]} O-O {[%emt 0:02:51]} 12. Bc4 {[%emt 0:03:21]} Nd4 {[%emt 0:29:14]} 13. h3 {[%emt 0:03:54]} Nd7 {[%emt 0:07:12]} 14. Nh2 {[%emt 0:08:41]} (14. Ba3 $11) 14... Ne5 $15 {[%emt 0:01:26]} 15. Ba2 {[%emt 0:01:02]} b5 {[%emt 0:05:17]} 16. Nd5 {[%emt 0:06:59]} e6 {[%emt 0:06:40]} 17. Ne3 $1 {[%emt 0:00:12]} bxa4 {[%emt 0:03:10]} 18. d3 {[%emt 0:17:52]} ({White should play} 18. f4 $15 Nd7 19. e5) 18... Bd7 {[%emt 0:04:43]} 19. Bb2 {[%emt 0:04:24]} (19. f4 $15 Nec6 20. Bb2) 19... Rb8 $17 {[%emt 0:01:30]} 20. c3 {[%emt 0:01:33]} Nb3 {[%emt 0:01:30]} 21. f4 {[%emt 0:02:04]} Nc6 {[%emt 0:00:26]} 22. Nf3 {[%emt 0:00:24]} Qc7 {[%emt 0:04:19]} 23. Nc4 {[%emt 0:06:32]} Bh6 {[%emt 0:01:35]} (23... Qxf4 $6 24. Nfe5 $15) (23... Nca5 $17 {And now ...Nxc4 would win.} 24. Nce5 Be8) 24. Nfe5 {[%emt 0:06:43]} ({Better is} 24. Bxb3 $1 $15 axb3 (24... Rxb3 25. Nfd2 $17) 25. Bc1) 24... Nxe5 $19 {[%emt 0:00:09]} 25. fxe5 {[%emt 0:00:16]} Bg7 {[%emt 0:04:00]} 26. Bxb3 {[%emt 0:05:59]} (26. Ba3 $17) 26... Rxb3 $19 {[%emt 0:00:35]} 27. Qc2 {[%emt 0:00:53]} Rfb8 {[%emt 0:00:50]} (27... Bxe5 28. Nxe5 Qxe5 29. c4) 28. Ba3 $2 {[%emt 0:05:18]} (28. Nd2) 28... Rxb1 $19 {[%emt 0:02:42]} (28... Bxe5 $2 29. Nxe5 Qxe5 30. Rxb3 axb3 31. Qf2 $19) 29. Rxb1 {[%emt 0:00:02]} Rxb1+ {[%emt 0:00:11]} (29... Bxe5 30. Nxe5 Qxe5 31. Rxb8+ Qxb8 32. Qf2 $15) 30. Qxb1 {[%emt 0:00:01]} Bb5 {[%emt 0:00:08]} (30... Bxe5 31. Nxe5 Qxe5 32. Qb7 $11) 31. Nd6 {[%emt 0:00:44]} Bxe5 {[%emt 0:01:13]} 32. Nxb5 {[%emt 0:00:03]} axb5 {[%emt 0:00:06]} 33. Qxb5 {[%emt 0:00:07]} Bxc3 {[%emt 0:00:14]} 34. Bxc5 {[%emt 0:01:05]} Qc8 {[%emt 0:04:33]} 35. d4 $2 {[%emt 0:01:43]} (35. Ba3 {is a better chance.}) 35... Qa8 $19 {[%emt 0:00:22]} 36. Qc4 {[%emt 0:01:04]} Bb2 {[%emt 0:00:45]} 37. d5 {[%emt 0:00:29]} exd5 {[%emt 0:00:48]} 38. exd5 {[%emt 0:00:01]} a3 {[%emt 0:01:04]} 39. Qa2 {[%emt 0:00:02]} Qc8 {[%emt 0:00:09]} (39... Qa4 $142 40. Be3 Be5) 40. Bd6 {[%emt 0:01:28]} Qc2 {[%emt 0:00:51]} 41. Kh1 {[%emt 0:00:02]} Qd3 {[%emt 0:01:07]} 42. Kh2 {[%emt 0:00:37]} h5 {[%emt 0:01:25]} 43. h4 {[%emt 0:00:30]} Kg7 {[%emt 0:01:24]} 44. Bg3 {[%emt 0:00:26]} Bd4 {[%emt 0:01:41]} 45. d6 {[%emt 0:00:43]} Bb2 {[%emt 0:00:16]} (45... Qd1 $142 46. Qc4 Qg1+ 47. Kh3 Qh1+ 48. Bh2 Be5 49. g3 Bxd6 50. Qc2 Qf1+ 51. Qg2 Qf5+ 52. g4 Qd3+ (52... hxg4+ {is a self mate.} 53. Qxg4 Qxg4+ 54. Kxg4 Bxh2 55. Kh3 Bd6 56. Kg2 a2 57. Kg1 a1=Q+ 58. Kf2 Qd1 59. h5 Bc5+ 60. Kg3 gxh5 61. Kf4 Qg4+ 62. Ke5 Bb6 63. Kd6 Qe6#) 53. Bg3 a2 54. Qb2+ Kg8 55. Kg2 Qxg3+ (55... Bxg3 56. Qxa2 hxg4 57. Qa8+ Kg7 58. Qa1+ f6 59. Qa7+ Kh6 60. Qa8 Bxh4 61. Qa2 Qh3+ 62. Kg1 Bg5 63. Qg2 Be3+ 64. Kf1 Bc5 65. Qxh3+ gxh3 66. Ke2 h2 67. Kd3 h1=Q 68. Kc4 Qc6 69. Kc3 Qe4 70. Kd2 Bb4+ 71. Kc1 Qe2 72. Kb1 Ba3 73. Ka1 Qb2#) 56. Kf1 Qf3+ (56... Qxh4 {leads to mate.} 57. Qc3 Qxg4 58. Qa1 Qf3+ 59. Kg1 Qe2 60. Qf6 Bg3 61. Qd8+ Kh7 62. Qd4 Qh2+ 63. Kf1 a1=Q+ 64. Qxa1 Qf2#) 57. Kg1 hxg4 (57... Qxg4+ {gets mated.} 58. Kf2 Qf4+ 59. Ke1 Bb4+ 60. Ke2 Qh2+ 61. Kd3 Qxb2 62. Ke4 Qe2+ 63. Kd5 Qe6+ 64. Kd4 a1=Q+ 65. Kd3 Qd1#) 58. Qc1 g3 (58... Bc5+ 59. Qxc5 a1=Q+ 60. Qc1 Qxc1+ 61. Kh2 Qh3#) 59. Qc8+ Kh7 60. Qe8 a1=Q+ 61. Qe1 Qxe1#) 46. Bf4 $19 {[%emt 0:00:31]} Qd4 {[%emt 0:00:18]} 47. Bg3 {[%emt 0:00:20]} g5 {[%emt 0:00:20]} 48. hxg5 {[%emt 0:01:15]} h4 {[%emt 0:00:02]} 49. g6 {[%emt 0:00:32]} hxg3+ {[%emt 0:00:08]} 50. Kh3 {[%emt 0:00:01]} Qf6 {[%emt 0:00:54]} 51. gxf7 {[%emt 0:00:54]} Qxf7 {[%emt 0:00:26]} 52. Qb1 {[%emt 0:00:24]} Be5 {[%emt 0:00:21]} 53. Qd1 {[%emt 0:00:18]} Qf5+ {[%emt 0:00:08]} 54. Kh4 {[%emt 0:00:03]} Qf6+ {[%emt 0:00:55]} 55. Kh3 {[%emt 0:00:57]} Qf5+ {[%emt 0:00:12]} 56. Kh4 {[%emt 0:00:02]} Kg6 {[%emt 0:00:40]} 57. d7 {[%emt 0:00:46]} Qg5+ {[%emt 0:00:06]} 58. Kh3 {[%emt 0:00:03]} Qh6+ {[%emt 0:00:06]} 59. Kg4 {[%emt 0:00:03]} Qh5# {[%emt 0:00:35]} 0-1

[Event "2nd Cambridge Open 2024"]
[Site "Cambridge"]
[Date "2024.02.21"]
[Round "4.12"]
[White "Karamsetty, Jeevan"]
[Black "Haubro, Martin"]
[Result "0-1"]
[ECO "B50"]
[WhiteElo "2211"]
[BlackElo "2418"]
[Annotator "TA"]
[PlyCount "96"]
[EventDate "2024.02.18"]
[EventType "swiss"]
[EventCountry "ENG"]
[SourceTitle "playchess.com"]
[Source "ChessBase"]
[SourceQuality "1"]
[TimeControl "5400+30"]

{[%evp 12,96,0,0,0,-3,0,-12,0,-8,2,9,4,6,11,15,28,27,36,-17,23,3,61,39,73,88,73,80,77,35,47,43,53,50,61,4,0,-78,0,0,0,-834,-596,-613,-637,-897,-413,-406,-391,-541,-486,-563,-571,-621,-548,-686,-594,-704,-663,-679,-682,-825,-906,-910,-868,-973,-966,-1137,-1041,-1535,-1241,-1794,-1647,-29986,-29987,-29991,-29992,-29992,-29989,-29996,-29993,-29994,-29983,-29988,-29989,-29990,-7443]} 1. e4 {[%emt 0:00:04]} c5 {[%emt 0:00:03]} 2. Nf3 {[%emt 0:00:07]} d6 {[%emt 0:00:05]} 3. Bc4 {[%emt 0:00:04]} Nf6 {[%emt 0:00:35]} 4. d3 {[%emt 0:00:07]} e6 {[%emt 0:03:02]} 5. Bb3 {[%emt 0:02:01]} Nc6 {[%emt 0:02:04]} 6. c3 {[%emt 0:00:30]} Be7 {[%emt 0:01:59]} 7. O-O {[%emt 0:00:09]} d5 {[%emt 0:01:15] B50: Sicilian: 2...d6, Miscellaneous.} 8. e5 {[%emt 0:12:47]} Nd7 {[%emt 0:00:39]} 9. d4 {[%emt 0:01:08]} b5 {[%emt 0:07:01]} 10. dxc5 $146 {[%emt 0:15:47]} ({Predecessor:} 10. Be3 a5 11. a4 c4 12. Bc2 b4 13. Nbd2 bxc3 14. bxc3 Rb8 15. Rb1 Ba6 16. h4 {0-1 Ortega Amarelle,M (2463)-Kanakaris,G (2400) Titled Tuesday intern op 16th Feb blitz 2021 (11)}) 10... Bxc5 {[%emt 0:12:59]} 11. Bf4 {[%emt 0:04:41]} Qb6 {[%emt 0:02:50]} 12. Bc2 {[%emt 0:08:14]} b4 {[%emt 0:03:44]} 13. a3 {[%emt 0:02:23]} b3 $1 {[%emt 0:12:15]} 14. Bd3 {[%emt 0:00:44]} h6 {[%emt 0:02:20]} 15. Bg3 {[%emt 0:09:52]} (15. Nbd2 $14) 15... g5 {[%emt 0:03:15]} 16. a4 {[%emt 0:14:38]} a6 {[%emt 0:03:15]} (16... Ba6 $11) 17. h3 {[%emt 0:01:34]} h5 {[%emt 0:09:12]} 18. Nxg5 {[%emt 0:02:05]} h4 {[%emt 0:04:32]} 19. Qf3 {[%emt 0:01:06]} Rf8 {[%emt 0:04:45]} (19... hxg3 20. Qxf7+ Kd8 21. Nxe6#) 20. Bxh4 {[%emt 0:00:28]} Ncxe5 {[%emt 0:01:43]} 21. Qe2 $1 {[%emt 0:00:38]} Be7 $1 {[%emt 0:04:14]} 22. a5 $1 {[%emt 0:01:24]} Qa7 {[%emt 0:04:23]} 23. Nd2 {[%emt 0:10:01]} (23. Kh1 $1 $14) 23... Rh8 $1 $11 {[%emt 0:00:06]} 24. Ndf3 {[%emt 0:01:37]} (24. Nxf7 $11 {keeps the balance.} Nxf7 25. Bxe7 Kxe7 26. Nxb3) 24... Nxd3 {[%emt 0:03:45]} (24... Rxh4 $17 25. Nxe5 Bxg5) 25. Nxe6 {[%emt 0:01:00]} fxe6 {[%emt 0:01:39]} 26. Qxe6 $2 {[%emt 0:01:08][%mdl 8192]} (26. Bxe7 $11 N7c5 (26... Nf4 $2 27. Qd2 $19) 27. Bxc5 Nxc5 28. Rfd1) 26... Nf6 {[%emt 0:00:10]} 27. Qe2 {[%emt 0:01:11]} Nf4 {[%emt 0:00:11]} 28. Qd2 {[%emt 0:00:37] [#]} Rxh4 {[%emt 0:05:26]} (28... Nxg2 $142 $1 29. Kxg2 (29. Bg3 Ne4) 29... Bxh3+ 30. Kg1 O-O-O) 29. Nxh4 $19 {[%emt 0:00:37]} Qc7 {[%emt 0:00:03] Strongly threatening ...Ne4.} 30. Rfe1 {[%emt 0:02:05][%cal Oe1e7]} Be6 {[%emt 0:02:36] White must now prevent ...Ne4.} 31. Rxe6 {[%emt 0:02:10]} Nxe6 {[%emt 0:00:07]} 32. Re1 {[%emt 0:00:08]} Qf4 {[%emt 0:01:28]} 33. Qe2 {[%emt 0:01:00]} Qe4 {[%emt 0:00:26]} 34. Qd1 {[%emt 0:00:36]} Qxh4 {[%emt 0:00:18]} 35. Rxe6 {[%emt 0:00:06]} Kf7 {[%emt 0:00:39]} 36. Re3 {[%emt 0:01:13]} Bc5 {[%emt 0:03:31]} 37. Rf3 {[%emt 0:00:27]} Qc4 {[%emt 0:00:27]} 38. Qb1 {[%emt 0:00:29]} Qe4 {[%emt 0:00:06]} 39. Qd1 {[%emt 0:01:22]} Rg8 {[%emt 0:00:05]} 40. Kh1 {[%emt 0:00:17]} Bd6 {[%emt 0:00:19] ...Re8 would now be deadly.} 41. c4 {[%emt 0:02:31]} Re8 {[%emt 0:00:14]} 42. Re3 {[%emt 0:00:51]} Qf4 {[%emt 0:00:34][%csl Gd6][%cal Rf4h2]} 43. g3 {[%emt 0:01:08]} Qxf2 {[%emt 0:00:05]} 44. Rxe8 {[%emt 0:00:23]} Kxe8 {[%emt 0:00:06]} 45. Qxb3 {[%emt 0:00:26]} Qf1+ {[%emt 0:00:22]} 46. Kh2 {[%emt 0:00:01]} Qxc4 {[%emt 0:00:07]} 47. Qf3 {[%emt 0:00:30]} Qc2+ {[%emt 0:00:24]} 48. Kh1 {[%emt 0:00:19]} Qc1+ {[%emt 0:00:12]} (48... Ne4 $142 49. Qh5+ Kd8 50. Qxd5 Nxg3+ 51. Kg1 Qb1+ 52. Kf2 Qxb2+ 53. Kg1 Qc1+ 54. Kf2 Qf1+ 55. Ke3 Qe2+ 56. Kd4 Qd2+ 57. Kc4 Qa2+ (57... Qc2+ {is a self mate.} 58. Kd4 Nf5+ 59. Qxf5 Qxf5 60. h4 Qf3 61. h5 Kd7 62. h6 Ba3 63. Kc4 Bb2 64. Kc5 Qc6+ 65. Kb4 Qb5#) 58. Kd4 Ne2+ 59. Ke3 Qxd5 60. Kxe2 Bc5 (60... Qxa5 {leads to mate.} 61. Ke3 Qa4 62. Ke2 Qe4+ 63. Kf2 Qd3 64. h4 Bc5+ 65. Kg2 Qe2+ 66. Kh3 Bd6 67. h5 Qf3+ 68. Kh4 Qg3#) (60... Qa2+ {gets mated.} 61. Kf3 Qa3+ 62. Ke4 Qxh3 63. Kd5 Ke7 64. Ke4 Kd7 65. Kd4 Qf3 66. Kc4 Qe3 67. Kd5 Qd3#) 61. h4 Qe4+ (61... Qa2+ 62. Kd3 Qf2 63. Ke4 Qxh4+ 64. Kf3 Qb4 65. Kg3 Qe4 66. Kh3 Qf3+ 67. Kh2 Qg4 68. Kh1 Qh3#) 62. Kd2 Bb4+ (62... Qxh4 63. Kc2 Qc4+ 64. Kd2 Bd4 65. Kd1 Be3 66. Ke1 Qc2 67. Kf1 Qf2#) 63. Kc1 Qe2 (63... Bxa5 64. Kb2 Qb4+ 65. Kc2 Qc3+ 66. Kb1 Qd2 67. h5 Bc3 68. h6 Qb2#) 64. Kb1 Ba3 65. Ka1 Qb2#) 0-1

[Event "2nd Cambridge Open 2024"]
[Site "Cambridge"]
[Date "2024.02.21"]
[Round "4.13"]
[White "Sowray, Peter J"]
[Black "Pert, Richard G"]
[Result "0-1"]
[ECO "D32"]
[WhiteElo "2169"]
[BlackElo "2411"]
[Annotator "TA"]
[PlyCount "102"]
[EventDate "2024.02.18"]
[EventType "swiss"]
[EventCountry "ENG"]
[SourceTitle "playchess.com"]
[Source "ChessBase"]
[SourceQuality "1"]
[TimeControl "5400+30"]

{[%evp 23,102,44,38,23,50,50,69,66,53,54,45,35,86,68,92,0,0,0,0,0,0,0,0,0,0,-145,-133,-122,-143,-200,-191,-371,-366,-372,-325,-469,-271,-275,-157,-154,-18,-19,0,-71,-95,-75,-94,-134,-133,-132,-127,-158,-166,-161,-162,-185,-53,-190,-81,-277,-148,-148,-148,-148,-148,-148,-148,-301,-13,-13,-13,-76,-76,-76,-76,-764,-704,-591,-439,-423,-391]} 1. d4 {[%emt 0:00:05]} d5 {[%emt 0:00:11]} 2. c4 {[%emt 0:00:06]} e6 {[%emt 0:00:06]} 3. Nc3 {[%emt 0:00:04]} c5 {[%emt 0:00:18]} 4. cxd5 {[%emt 0:00:06]} cxd4 {[%emt 0:00:16]} 5. Qa4+ {[%emt 0:00:18]} Bd7 {[%emt 0:00:23]} 6. Qxd4 {[%emt 0:00:12]} exd5 {[%emt 0:00:10]} 7. Qxd5 {[%emt 0:00:07]} Nf6 {[%emt 0:00:10]} 8. Qd1 {[%emt 0:00:23]} Bc5 {[%emt 0:00:38]} 9. Nf3 {[%emt 0:01:35]} O-O {[%emt 0:01:32]} 10. e3 {[%emt 0:00:22]} Nc6 {[%emt 0:00:41]} 11. Be2 {[%emt 0:00:35]} Qe7 {[%emt 0:00:09]} 12. O-O {[%emt 0:00:51]} Rfd8 {[%emt 0:00:05]} 13. Qb3 {[%emt 0:02:10][%cal Of1d1]} Bg4 {[%emt 0:12:57]} 14. Rd1 {[%emt 0:04:27]} a6 {[%emt 0:12:18]} 15. Bd2 {[%emt 0:07:54] White is slightly better.} b5 {[%emt 0:02:15]} 16. a3 {[%emt 0:08:20]} Bf5 {[%emt 0:06:46]} 17. Qa2 {[%emt 0:12:34]} Ne5 {[%emt 0:16:21]} (17... Be6 $14 18. Qb1 Bb3) 18. Be1 {[%emt 0:05:24]} Nd3 {[%emt 0:03:43] [#]} 19. Nd4 {[%emt 0:08:36]} Bxd4 $11 {[%emt 0:02:37]} 20. Bxd3 {[%emt 0:01:08]} Bxc3 $1 {[%emt 0:02:56]} 21. Bxf5 {[%emt 0:00:07]} Bxe1 {[%emt 0:00:08]} 22. Rxd8+ {[%emt 0:03:43]} (22. Rxe1 g6 23. Bh3 Rd2 $17) 22... Rxd8 {[%emt 0:00:08]} 23. Rxe1 {[%emt 0:00:04]} g6 {[%emt 0:06:36]} 24. Bh3 {[%emt 0:07:06]} (24. Bb1 $1 $11) 24... Rd2 $17 {[%emt 0:00:29]} 25. Qb3 {[%emt 0:10:24]} Ne4 {[%emt 0:05:41] Wards off Qc3} 26. Rc1 {[%emt 0:09:09]} (26. Rf1 $17) 26... Rxf2 $19 {[%emt 0:06:36]} 27. Qd5 $2 {[%emt 0:03:07]} (27. Qb4 {might work better.} Qxb4 28. axb4 Rxb2 29. Bc8) 27... Rd2 {[%emt 0:01:08]} (27... Rxb2 $2 28. Qd4 (28. Rc8+ $2 Kg7 $19) 28... Qf6 29. Qxe4 $18) 28. Qc6 {[%emt 0:01:45]} h5 {[%emt 0:05:46] Threatens to win with ...Ng5.} (28... Rxb2 29. Qxa6 Nf6 30. Rf1 Qxe3+ 31. Kh1) 29. Bc8 {[%emt 0:03:00]} (29. Re1 $142) 29... Rd6 {[%emt 0:04:52]} (29... Rxb2 $2 30. Bxa6 Qe5 (30... Qxa3 31. Qxe4 Qxa6 32. Rf1 $17) 31. Bb7 $19) (29... Re2 $142 {[%cal Oe7a7] White must now prevent ...Qa7!} 30. h4 (30. Bxa6 $2 Qa7 $19) 30... Nd2 (30... Rxb2 $2 31. Qd7 $19) (30... Qxh4 $2 31. Qe8+ Kg7 32. Qe5+ Kh7 33. Qf4 $19)) 30. Qc2 {[%emt 0:01:19]} Kh7 {[%emt 0:01:06]} (30... a5 $19 {aiming for ...Rd2.} 31. b4 axb4 32. axb4 Rd2) 31. h3 $17 {[%emt 0:00:57]} Rd2 {[%emt 0:03:31]} ({Better is} 31... Kg7 $17 {...Rd2 is the strong threat.} 32. Rd1 a5 33. Rxd6 Nxd6 34. Qc3+ Kh7) 32. Qc7 $11 {[%emt 0:01:55]} Qf6 $40 {[%emt 0:01:29][%mdl 128] White needs to defend precisely.} 33. Qf4 {[%emt 0:03:25]} (33. Rf1 $11 Rf2 (33... Qxb2 34. Qxf7+ Qg7 35. Bxa6 $11) 34. Rxf2 Qxf2+ 35. Kh2) 33... Qxf4 $1 $17 {[%emt 0:01:53]} (33... Qxb2 $6 34. Qxf7+ Qg7 35. Qxg7+ Kxg7 36. Bxa6 $11) 34. exf4 {[%emt 0:00:02][%mdl 4096] Endgame. KRB-KRN} a5 {[%emt 0:00:09]} (34... Rxb2 35. Bxa6 Kg7 36. Bb7) 35. b4 {[%emt 0:03:28]} axb4 {[%emt 0:00:19]} 36. axb4 {[%emt 0:00:01]} Rb2 {[%emt 0:00:07]} 37. g4 {[%emt 0:01:14]} hxg4 $1 {[%emt 0:01:11] Black is more active.} ({But not} 37... Rxb4 $6 38. gxh5 gxh5 39. Kg2 $11) 38. hxg4 {[%emt 0:00:01]} Rxb4 {[%emt 0:00:05]} 39. Kg2 {[%emt 0:00:45]} Nd6 {[%emt 0:00:46]} (39... Rc4 $1 $19 {[%cal Rc4c1]} 40. Rh1+ Kg7) 40. Kg3 {[%emt 0:01:11]} ({White has to play} 40. Kf3 $1 $15) 40... Kg7 {[%emt 0:01:02]} (40... Nxc8 $1 $19 41. Rxc8 Rb1) 41. g5 $2 {[%emt 0:00:47]} (41. Kf3 $17) 41... Rd4 {[%emt 0:00:19]} (41... Rc4 $19 42. Rxc4 bxc4) 42. Bg4 {[%emt 0:01:26]} b4 {[%emt 0:00:18]} 43. Rc6 {[%emt 0:00:25]} b3 {[%emt 0:01:04]} 44. Rb6 {[%emt 0:00:15]} Rd3+ {[%emt 0:00:07]} 45. Kh4 $2 {[%emt 0:00:32]} (45. Kf2 $17 {is the only way for White.}) 45... Nf5+ $2 {[%emt 0:01:25]} ({Much less strong is} 45... Nc4 46. Rb8 $19) (45... Kf8 $1 $19 {And now ...Ke7 would win.} 46. Rb8+ Ke7) 46. Bxf5 $11 {[%emt 0:00:07]} gxf5 {[%emt 0:00:01] KR-KR} 47. Rg6+ {[%emt 0:01:10] [#]} Kf8 $1 $17 {[%emt 0:00:31] ( -> ...Rh3+)} 48. Rb6 {[%emt 0:00:39] [#]} Rf3 $1 {[%emt 0:00:16]} 49. g6 $2 {[%emt 0:00:50][%mdl 8192]} (49. Rb5 $17) 49... fxg6 $19 {[%emt 0:00:38] Hoping for ...Ke7. Black is clearly winning.} ({Not} 49... Rxf4+ 50. Kg5 Rg4+ 51. Kxf5 Rxg6 52. Rb8+ Kg7 53. Rxb3 $11) 50. Kg5 {[%emt 0:00:28]} Rg3+ {[%emt 0:00:19]} 51. Kf6 {[%emt 0:00:19][%cal Rb6b8]} Ke8 {[%emt 0:00:06] Weighted Error Value: White=0.65/Black=0.36.  Loses game:     	White=2     	---        Missed win:     	---       	Black=1      Mistake:       	White=9     	Black=7      Inaccurate:     	White=1     	Black=1      OK:         	White=7     	Black=16     Best:        	White=7     	Black=4      Strong:       	---       	Black=4} 0-1

[Event "2nd Cambridge Open 2024"]
[Site "Cambridge"]
[Date "2024.02.21"]
[Round "4.14"]
[White "Wells, Peter K"]
[Black "Denderski, Piotr"]
[Result "1-0"]
[ECO "D42"]
[WhiteElo "2341"]
[BlackElo "2137"]
[Annotator "RC"]
[PlyCount "49"]
[EventDate "2024.02.18"]
[EventType "swiss"]
[EventCountry "ENG"]
[SourceTitle "playchess.com"]
[Source "ChessBase"]
[SourceQuality "1"]
[TimeControl "5400+30"]

1. d4 {[%emt 0:07:48]} Nf6 {[%emt 0:00:07]} 2. Nf3 {[%emt 0:02:05]} e6 {[%emt 0:00:06]} 3. c4 {[%emt 0:00:19]} c5 {[%emt 0:00:05]} 4. e3 {[%emt 0:02:10]} d5 {[%emt 0:00:08]} 5. Nc3 {[%emt 0:00:06]} cxd4 {[%emt 0:04:57]} 6. exd4 {[%emt 0:00:07]} Nc6 {[%emt 0:02:41]} 7. a3 {[%emt 0:06:37]} Be7 {[%emt 0:05:09]} 8. cxd5 {[%emt 0:01:50]} Nxd5 {[%emt 0:01:22]} 9. Bd3 {[%emt 0:01:58]} O-O {[%emt 0:07:09]} 10. O-O {[%emt 0:01:27]} Nxc3 {[%emt 0:02:01]} 11. bxc3 {[%emt 0:00:05]} b6 {[%emt 0:04:47]} 12. Re1 {[%emt 0:02:37]} Bb7 {[%emt 0:04:28]} 13. h4 {[%emt 0:00:59]} Bf6 {[%emt 0:10:28]} 14. Ng5 {[%emt 0:04:52]} g6 {[%emt 0:06:22]} 15. Qg4 {[%emt 0:15:22]} h5 {[%emt 0:05:47]} 16. Qg3 {[%emt 0:08:50]} Ne7 {[%emt 0:05:26]} 17. Bf4 {[%emt 0:05:35]} Rc8 {[%emt 0:06:15]} 18. Rac1 {[%emt 0:00:48]} Nf5 {[%emt 0:07:36]} 19. Nxe6 {[%emt 0:11:47]} fxe6 {[%emt 0:06:57]} 20. Qxg6+ {[%emt 0:00:29]} Ng7 {[%emt 0:01:24]} 21. Bg5 {[%emt 0:12:52]} Bxg5 {[%emt 0:07:53]} 22. Qh7+ {[%emt 0:02:59]} Kf7 {[%emt 0:00:04]} 23. Bg6+ {[%emt 0:01:23]} Kf6 {[%emt 0:00:43]} 24. hxg5+ {[%emt 0:00:20]} Kxg5 {[%emt 0:00:09]} 25. Qxg7 {[%emt 0:00:27]} 1-0